fUSD/lending_fUSD_20240823
["ID","MTS","AMOUNT","RATE_DAILY","PERIOD"]
[335689012,1724431849848,-500.0,0.00010999,2]
[335689013,1724431849858,-500.0,0.00010999,2]
[335689014,1724431849868,-500.0,0.00010999,2]
[335689015,1724431849878,-500.0,0.00010999,2]
[335689016,1724431849888,-500.0,0.00010999,2]
[335689017,1724431849897,-500.0,0.00010999,2]
[335689018,1724431849912,-500.0,0.00010999,2]
[335689019,1724431849926,-500.0,0.00010999,2]
[335689020,1724431849935,-500.0,0.00010999,2]
[335689021,1724431849945,-156.04,0.00010999,2]
[335689022,1724431849955,-500.0,0.00010999,2]
[335689023,1724431849964,-420.19,0.00010999,2]
[335689024,1724431849973,-500.0,0.00010999,2]
[335689025,1724431849982,-500.0,0.00010999,2]
[335689026,1724431849992,-500.0,0.00010999,2]
[335689027,1724431850001,-500.0,0.00010999,2]
[335689028,1724431850010,-500.0,0.00010999,2]
[335689029,1724431850019,-500.0,0.00010999,2]
[335689030,1724431850029,-500.0,0.00010999,2]
[335689031,1724431850039,-151.0,0.00010999,2]
[335689032,1724431850051,-500.0,0.00010999,2]
[335689033,1724431850060,-151.15049,0.00010999,2]
[335689034,1724431850069,-500.0,0.00010999,2]
[335689035,1724431850078,-500.0,0.00010999,2]
[335689036,1724431850089,-500.0,0.00010999,2]
[335689037,1724431850098,-500.0,0.00010999,2]
[335689038,1724431850107,-500.0,0.00010999,2]
[335689039,1724431850116,-500.0,0.00010999,2]
[335689040,1724431850125,-500.0,0.00010999,2]
[335689041,1724431850135,-500.0,0.00010999,2]
[335689042,1724431850145,-500.0,0.00010999,2]
[335689043,1724431850154,-610.69,0.00010999,2]
[335689044,1724431850163,-500.0,0.00010999,2]
[335689045,1724431850172,-500.0,0.00010999,2]
[335689046,1724431850181,-500.0,0.00010999,2]
[335689047,1724431850190,-260.85,0.00010999,2]
[335689048,1724431850199,-500.0,0.00010999,2]
[335689049,1724431850219,-500.0,0.00010999,2]
[335689050,1724431850228,-500.0,0.00010999,2]
[335689051,1724431850237,-500.0,0.00010999,2]
[335689052,1724431850245,-500.0,0.00010999,2]
[335689053,1724431850254,-500.0,0.00010999,2]
[335689054,1724431850263,-628.82,0.00010999,2]
[335689055,1724431850272,-500.0,0.00010999,2]
[335689056,1724431850281,-500.0,0.00010999,2]
[335689057,1724431850290,-500.0,0.00010999,2]
[335689058,1724431850300,-500.0,0.00010999,2]
[335689059,1724431850309,-500.0,0.00010999,2]
[335689060,1724431850318,-426.54,0.00010999,2]
[335689061,1724431850327,-500.0,0.00010999,2]
[335689062,1724431850336,-500.0,0.00010999,2]
[335689063,1724431850345,-164.27,0.00010999,2]
[335689064,1724431850354,-796.8,0.00010999,2]
[335689065,1724431850363,-796.8,0.00010999,2]
[335689066,1724431850373,-796.8,0.00010999,2]
[335689067,1724431850382,-796.8,0.00010999,2]
[335689068,1724431850391,-796.8,0.00010999,2]
[335689069,1724431850400,-796.8,0.00010999,2]
[335689070,1724431850409,-796.8,0.00010999,2]
[335689071,1724431850418,-796.8,0.00010999,2]
[335689072,1724431850427,-796.8,0.00010999,2]
[335689073,1724431850436,-1167.75,0.00010999,2]
[335689074,1724431850607,-796.8,0.00010999,2]
[335689075,1724431850635,-1167.75,0.00010999,2]
[335689076,1724431850645,-796.8,0.00010999,2]
[335689077,1724431850654,-1167.75,0.00010999,2]
[335689078,1724431850664,-796.8,0.00010999,2]
[335689079,1724431850674,-1167.75,0.00010999,2]
[335689080,1724431850683,-796.8,0.00010999,2]
[335689081,1724431850693,-1167.75,0.00010999,2]
[335689082,1724431850706,-796.8,0.00010999,2]
[335689083,1724431850715,-796.8,0.00010999,2]
[335689084,1724431850723,-1167.75,0.00010999,2]
[335689085,1724431850732,-796.8,0.00010999,2]
[335689086,1724431850742,-1167.75,0.00010999,2]
[335689087,1724431850751,-796.8,0.00010999,2]
[335689088,1724431850760,-1167.75,0.00010999,2]
[335689089,1724431850770,-796.98,0.00010999,2]
[335689090,1724431850779,-1167.75,0.00010999,2]
[335689091,1724431850789,-1167.75,0.00010999,2]
[335689092,1724431850798,-1167.75,0.00010999,2]
[335689093,1724431850808,-1167.75,0.00010999,2]
[335689094,1724431850818,-1167.75,0.00010999,2]
[335689095,1724431850827,-1167.75,0.00010999,2]
[335689096,1724431850836,-1167.75,0.00010999,2]
[335689097,1724431850845,-1167.75,0.00010999,2]
[335689098,1724431850855,-1167.75,0.00010999,2]
[335689099,1724431850863,-1167.81,0.00010999,2]
[335689100,1724431850872,-883.41,0.00010999,2]
[335689101,1724431850881,-883.41,0.00010999,2]
[335689102,1724431850890,-883.41,0.00010999,2]
[335689103,1724431850901,-258.16418373,0.00010999,2]
[335689104,1724431850909,-929667.00869827,0.00011,2]
[335689105,1724431850929,-313.3815487,0.00011,2]
[335689106,1724431850940,-1612.32159237,0.00011,2]
[335689107,1724431850955,-369.04840763,0.00011,2]
[335689108,1724431851432,-637.525,0.00010999,2]
[335689109,1724431851444,-245.885,0.00010999,2]
[335689110,1724431851456,-54.115,0.00010999,2]
[335689111,1724431851471,-395.47044493,0.00010999,2]
[335689112,1724431851482,-433.82455507,0.00010999,2]
[335689113,1724431851491,-88.19442765,0.00010999,2]
[335689114,1724431851502,-322.8916,0.00010999,2]
[335689115,1724431851514,-472.32397235,0.00010999,2]
[335689116,1724431851523,-792.47288605,0.00010999,2]
[335689117,1724431851543,-215.57492419,0.00010899,2]
[335689118,1724431851552,-90.93711395,0.00010999,2]
[335689119,1724431851561,-37.02711672,0.00010999,2]
[335689120,1724431851573,-846.38288328,0.00010999,2]
[335689121,1724431851582,-701.29788536,0.00010999,2]
[335689122,1724431851593,-182.11211464,0.00010999,2]
[335689123,1724431851603,-150.93767513,0.00010999,2]
[335689124,1724431851614,-732.47232487,0.00010999,2]
[335689125,1724431851623,-883.41,0.00010999,2]
[335689126,1724431851632,-883.41,0.00010999,2]
[335689127,1724431851641,-883.41,0.00010999,2]
[335689128,1724431851651,-326.52131513,0.00011,2]
[335689129,1724431851662,-700009.47472182,0.00011,2]
[335689130,1724431851673,-50146.96289302,0.00011,2]
[335689131,1724431851684,-416.0689448,0.00011,2]
[335689132,1724431851695,-9331.86092357,0.00011,2]
[335689133,1724431851710,-1253.16529958,0.00011,2]
[335689134,1724431851721,-3733.93942477,0.00011,2]
[335689135,1724431851736,-24236.90631123,0.00011,2]
[335689136,1724431851747,-16744.559,0.00011,2]
[335689137,1724431851758,-3490.9987,0.00011,2]
[335689138,1724431851769,-2366.29051615,0.00011,2]
[335689140,1724431867048,174.16188238,9.851e-05,2]
[335689141,1724431868058,1311.65694169,9.851e-05,2]
[335689142,1724431874160,693.93284973,9.851e-05,2]
[335689143,1724431876302,3074.12158258,9.851e-05,2]
[335689144,1724431879655,600.0,8.275e-05,2]
[335689145,1724431880218,159.22460451,9.851e-05,2]
[335689146,1724431881250,600.0,9.645e-05,2]
[335689147,1724431885430,291.90302489,9.851e-05,2]
[335689148,1724431885543,1270.23398053,9.851e-05,2]
[335689149,1724431886560,155.09465107,9.851e-05,2]
[335689150,1724431886706,1560.55419476,9.851e-05,2]
[335689151,1724431886731,10000.0,9.851e-05,2]
[335689152,1724431886762,4689.71903105,9.851e-05,2]
[335689153,1724431887243,155.0,9.851e-05,2]
[335689154,1724431887528,5155.28096895,9.926e-05,2]
[335689155,1724431887548,713.18443105,9.926e-05,2]
[335689156,1724431891296,3074.12158258,9.851e-05,2]
[335689157,1724431901536,6212.69398637,9.851e-05,2]
[335689158,1724431901560,10000.0,9.851e-05,2]
[335689159,1724431901582,4200.78249645,9.851e-05,2]
[335689160,1724431902870,412.35152068,9.851e-05,2]
[335689161,1724431908595,760.72426636,9.645e-05,2]
[335689162,1724431916642,4626.14171651,9.645e-05,2]
[335689163,1724431916663,10000.0,9.645e-05,2]
[335689164,1724431916684,5787.33476631,9.645e-05,2]
[335689169,1724431926894,500.0,8.275e-05,2]
[335689170,1724431928516,500.0,9.645e-05,2]
[335689172,1724431951064,1311.65694169,9.645e-05,2]
[335689173,1724431961390,291.90302489,9.645e-05,2]
[335689174,1724431963758,595.90557673,9.993e-05,2]
[335689175,1724431968239,216.75031306,9.645e-05,2]
[335689176,1724431975236,383.46287157,9.645e-05,2]
[335689177,1724431984719,412.98650575,9.645e-05,2]
[335689178,1724431984740,10000.0,9.645e-05,2]
[335689179,1724431984761,5837.28672006,9.645e-05,2]
[335689180,1724431991539,194.08966662,9.645e-05,2]
[335689181,1724431994552,3968.62361332,9.645e-05,2]
[335689182,1724431994574,10000.0,9.645e-05,2]
[335689183,1724431994594,4461.94958433,9.645e-05,2]
[335689184,1724431996216,159.22460451,9.645e-05,2]
[335689185,1724432000529,1270.23398053,9.645e-05,2]
[335689186,1724432006304,3074.12158258,9.645e-05,2]
[335689187,1724432007459,500.0,9.645e-05,2]
[335689188,1724432007830,500.0,9.645e-05,2]
[335689189,1724432008166,34.47024805,9.645e-05,2]
[335689190,1724432008186,465.52975195,9.645e-05,2]
[335689191,1724432008468,151.0,9.645e-05,2]
[335689192,1724432008493,500.0,9.645e-05,2]
[335689193,1724432008794,151.0,9.645e-05,2]
[335689194,1724432008834,500.0,9.645e-05,2]
[335689195,1724432009172,500.0,9.645e-05,2]
[335689196,1724432009513,502.0,9.645e-05,2]
[335689197,1724432009782,561.46435579,9.645e-05,2]
[335689198,1724432011198,159.22460451,9.645e-05,2]
[335689200,1724432014714,6509.78128775,9.645e-05,2]
[335689201,1724432014737,9740.49193806,9.645e-05,2]
[335689203,1724432040584,259.50806194,9.645e-05,2]
[335689204,1724432040605,1052.14887975,9.645e-05,2]
[335689205,1724432069155,1852.42,9.972e-05,2]
[335689206,1724432074398,291.90302489,9.645e-05,2]
[335689208,1724432095547,1270.23398053,9.645e-05,2]
[335689209,1724432108092,200.0,9.95e-05,2]
[335689211,1724432112314,310.62116674,9.645e-05,2]
[335689214,1724432135214,160.12160982,9.645e-05,2]
[335689215,1724432135573,1311.65694169,9.645e-05,2]
[335689216,1724432181909,2750.12,9.95e-05,2]
[335689218,1724432186639,230.51,9.95e-05,2]
[335689219,1724432193285,570.26439658,9.95e-05,2]
[335689220,1724432193307,391.65560342,9.95e-05,2]
[335689221,1724432194442,276.04764091,9.645e-05,2]
[335689222,1724432207397,3313.43,9.95e-05,2]
[335689223,1724432207546,790.51398384,9.645e-05,2]
[335689225,1724432233872,196.56,7.191e-05,2]
[335689226,1724432237636,1311.65694169,9.645e-05,2]
[335689228,1724432257988,328.0,9.927e-05,2]
[335689235,1724432274255,3392.13583014,9.93e-05,2]
[335689236,1724432274284,6607.86416986,9.93e-05,2]
[335689237,1724432278826,16250.27322581,9.645e-05,2]
[335689238,1724432305385,1994.4354771,9.927e-05,2]
[335689239,1724432316568,23900.0,9.927e-05,2]
[335689242,1724432331477,192.14261377,9.983e-05,2]
[335689243,1724432331639,646.89,9.933e-05,2]
[335689262,1724432352605,1185.08817196,9.927e-05,2]
[335689264,1724432405433,2482.5,9.993e-05,2]
[335689265,1724432405456,1717.5,9.993e-05,2]
[335689266,1724432440461,429.53,9.916e-05,2]
[335689267,1724432498715,3543.02,9.916e-05,2]
[335689268,1724432499500,428.35,8.219e-05,2]
[335689269,1724432517776,348.87,9.985e-05,2]
[335689270,1724432528768,9279.7073461,0.00010009,2]
[335689271,1724432529207,250.0,9.906e-05,2]
[335689272,1724432531314,1176.03,9.917e-05,2]
[335689273,1724432534188,1590.15,9.917e-05,2]
[335689274,1724432544997,154.76,9.923e-05,2]
[335689275,1724432573039,850.2,9.916e-05,2]
[335689276,1724432672554,200.0,9.9e-05,2]
[335689277,1724432679515,35741.98754431,0.00010009,2]
[335689280,1724432728545,413.4282629,0.00010009,2]
[335689281,1724432732866,181.97999253,0.00010009,2]
[335689282,1724432744459,3405.87089751,0.00010009,2]
[335689283,1724432755233,227.385631,0.00010009,2]
[335689284,1724432763007,737.6,9.893e-05,2]
[335689285,1724432778331,156.0,0.00010009,2]
[335689286,1724432789277,2342.45587798,0.00010009,2]
[335689287,1724432790950,300.23953365,0.00010009,2]
[335689288,1724432809902,300.23953365,0.00010009,2]
[335689289,1724432822186,9189.64,9.894e-05,2]
[335689290,1724432833501,413.28823694,0.00010009,2]
[335689306,1724432840131,500.0,0.00010009,2]
[335689309,1724432852696,2505.08172549,0.00010009,2]
[335689310,1724432854311,14821.82,9.91e-05,2]
[335689311,1724432864734,1740.72914034,0.00010009,2]
[335689312,1724432870092,500.0,0.00010009,2]
[335689313,1724432872098,-156.39812584,0.00010026,2]
[335689314,1724432872120,-363.05691439,0.00010026,2]
[335689315,1724432872143,-240.88,0.00010084,2]
[335689316,1724432872165,-264.75871737,0.00010097,2]
[335689317,1724432872186,-307.72886161,0.00010097,2]
[335689318,1724432872208,-155.0,0.00010097,2]
[335689319,1724432872230,-181.27,0.00010114,2]
[335689320,1724432872251,-722.59078572,0.00010471,2]
[335689321,1724432872273,-432.64200537,0.00010471,2]
[335689322,1724432872295,-256.78605423,0.00010471,2]
[335689323,1724432872319,-419.50258882,0.00010471,2]
[335689324,1724432872341,-255.46278276,0.00010471,2]
[335689325,1724432872363,-155.0,0.00010471,2]
[335689326,1724432872389,-428.35,0.00010471,2]
[335689327,1724432872418,-235.95346244,0.00010505,2]
[335689328,1724432872441,-366.51001001,0.00010505,2]
[335689329,1724432872464,-486.12274777,0.00010505,2]
[335689330,1724432872493,-156.26871753,0.00010505,2]
[335689331,1724432872517,-1064.41937794,0.00010505,2]
[335689332,1724432872542,-155.0,0.00010505,2]
[335689333,1724432872570,-275.1054945,0.00010505,2]
[335689334,1724432872593,-225.87484426,0.00010505,2]
[335689335,1724432872616,-150.0,0.00010565,2]
[335689336,1724432872640,-860.23729054,0.00010566,2]
[335689337,1724432872662,-155.0,0.00010566,2]
[335689338,1724432872685,-330.4938947,0.00010566,2]
[335689339,1724432872710,-6509.84,0.00010699,2]
[335689340,1724432872734,-499.99,0.00010699,2]
[335689341,1724432872760,-166.44772973,0.00010699,2]
[335689342,1724432872786,-155.09853817,0.00010699,2]
[335689343,1724432872809,-536.65833866,0.00010713,2]
[335689344,1724432872832,-419.90727343,0.00010713,2]
[335689345,1724432872854,-539.99788114,0.00010713,2]
[335689346,1724432872875,-2918.3701,0.00010799,2]
[335689347,1724432872897,-155.0,0.00010799,2]
[335689348,1724432872920,-201.76437582,0.00010799,2]
[335689349,1724432872943,-96.51308725,0.00010799,2]
[335689350,1724432873177,1347.34593694,0.00010009,2]
[335689351,1724432876959,-949.54206571,0.00010026,2]
[335689352,1724432876981,-523.08333089,0.00010097,2]
[335689353,1724432877004,-557.80103736,0.00010799,2]
[335689354,1724432877027,-313.21953604,0.00010799,2]
[335689355,1724432877051,-155.94399844,0.000108,2]
[335689356,1724432877076,-242.27347398,0.00010844,2]
[335689357,1724432877098,-12209.5491,0.00010849,2]
[335689358,1724432877120,-155.0,0.00010861,2]
[335689359,1724432877143,-293.0356,0.00010889,2]
[335689360,1724432877165,-351.61597102,0.0001089,2]
[335689361,1724432877189,-4248.93588656,0.00010899,2]
[335689362,1724432877663,-6523.39031344,0.00010899,2]
[335689363,1724432877686,-4045.4833,0.00010899,2]
[335689364,1724432877870,-1000.0,0.000109,2]
[335689365,1724432877893,-933.0272,0.000109,2]
[335689366,1724432877916,-274.92641953,0.000109,2]
[335689367,1724432877940,-274.76679836,0.000109,2]
[335689368,1724432877964,-2348.8709,0.000109,2]
[335689369,1724432877986,-152.83558693,0.000109,2]
[335689370,1724432878011,-166.39250321,0.000109,2]
[335689371,1724432878033,-598.90951497,0.000109,2]
[335689372,1724432878056,-306.60278461,0.000109,2]
[335689373,1724432878079,-3374.79467895,0.000109,2]
[335689374,1724432878188,-1014.63913135,0.000109,2]
[335689375,1724432878209,-431.14984838,0.000109,2]
[335689376,1724432878231,-3229.18180735,0.000109,2]
[335689377,1724432878253,-158.19368247,0.000109,2]
[335689378,1724432878275,-500.0,0.00010912,2]
[335689379,1724432878300,-1000.0,0.00010957,2]
[335689380,1724432878322,-500.0,0.00010958,2]
[335689381,1724432878344,-500.0,0.00010958,2]
[335689382,1724432878366,-500.0,0.00010958,2]
[335689383,1724432878388,-500.0,0.00010958,2]
[335689384,1724432878417,-500.0,0.00010958,2]
[335689385,1724432878439,-500.0,0.00010958,2]
[335689386,1724432878462,-500.0,0.00010958,2]
[335689387,1724432878486,-412.07647225,0.00010958,2]
[335689388,1724432878507,-200.0,0.00010959,2]
[335689389,1724432878530,-499.95,0.00010959,2]
[335689390,1724432878552,-1000.0,0.0001097,2]
[335689391,1724432878574,-1000.0,0.0001097,2]
[335689392,1724432878596,-1000.0,0.0001097,2]
[335689393,1724432878621,-1000.0,0.0001097,2]
[335689394,1724432878646,-1000.0,0.0001097,2]
[335689395,1724432878671,-500.0,0.0001097,2]
[335689396,1724432878697,-1000.0,0.0001097,2]
[335689397,1724432878720,-500.0,0.0001097,2]
[335689398,1724432878744,-1000.0,0.0001097,2]
[335689399,1724432878771,-500.0,0.0001097,2]
[335689400,1724432878797,-554.8090582,0.0001097,2]
[335689401,1724432879591,-155.0,0.00010852,2]
[335689402,1724432879618,-5298.3627,0.000109,2]
[335689403,1724432879643,-445.1909418,0.0001097,2]
[335689404,1724432879667,-500.0,0.0001097,2]
[335689405,1724432879690,-1000.0,0.0001097,2]
[335689406,1724432879713,-500.0,0.0001097,2]
[335689407,1724432879738,-1000.0,0.0001097,2]
[335689408,1724432879762,-1402.10711735,0.0001097,2]
[335689409,1724432879787,-500.0,0.0001097,2]
[335689410,1724432879810,-500.0,0.0001097,2]
[335689411,1724432879832,-500.0,0.0001097,2]
[335689412,1724432879856,-707.9510553,0.0001097,2]
[335689413,1724432879880,-200.0,0.00010973,2]
[335689414,1724432879904,-231.70408546,0.00010973,2]
[335689415,1724432879928,-7059.68410009,0.00010989,2]
[335689419,1724432923945,-20000.0,0.00010899,2]
[335689420,1724432924777,-411.76726662,0.00010899,2]
[335689421,1724432924799,-159.58732349,0.00010979,2]
[335689422,1724432924821,-344.85893471,0.00010979,2]
[335689423,1724432924846,-150.83,0.0001099,2]
[335689424,1724432924868,-18932.95647518,0.00010992,2]
[335689465,1724432979344,-178.41174,0.0001089,2]
[335689466,1724432979369,-19821.58826,0.00010899,2]
[335689467,1724432979841,-20000.0,0.00010899,2]
[335689468,1724432980404,-8178.41174,0.00010899,2]
[335689469,1724432980427,-399.27300998,0.000109,2]
[335689470,1724432980454,-300.0,0.00010957,2]
[335689471,1724432980476,-500.0,0.00010958,2]
[335689472,1724432980498,-500.0,0.00010958,2]
[335689473,1724432980522,-500.0,0.00010958,2]
[335689474,1724432980543,-500.0,0.00010958,2]
[335689475,1724432980565,-500.0,0.00010958,2]
[335689476,1724432980587,-500.0,0.00010958,2]
[335689477,1724432980612,-500.0,0.00010958,2]
[335689478,1724432980636,-292.48225483,0.00010958,2]
[335689479,1724432980657,-648.32500001,0.00010958,2]
[335689480,1724432980680,-6681.50799518,0.00010989,2]
[335689481,1724433022229,405.56,8.219e-05,2]
[335689534,1724433033579,-405.56,0.00010475,2]
[335689536,1724433033589,-180.793219,0.00010655,2]
[335689538,1724433033599,-150.0,0.00010794,2]
[335689540,1724433033608,-150.0,0.00010813,2]
[335689542,1724433033617,-150.0,0.00010829,2]
[335689544,1724433033627,-150.0,0.00010849,2]
[335689546,1724433033636,-1500.0,0.00010867,2]
[335689548,1724433033646,-150.0,0.00010871,2]
[335689550,1724433033656,-150.0,0.0001089,2]
[335689552,1724433033665,-300.0,0.00010899,2]
[335689554,1724433033676,-150.0,0.000109,2]
[335689555,1724433033686,-2926.28920686,0.000109,2]
[335689556,1724433033696,-2152.78787158,0.000109,2]
[335689557,1724433033705,-158.19368247,0.000109,2]
[335689558,1724433033715,-652.03,0.000109,2]
[335689559,1724433033725,-1500.0,0.0001092,2]
[335689560,1724433033735,-150.0,0.00010926,2]
[335689561,1724433033745,-150.0,0.00010941,2]
[335689562,1724433033754,-150.0,0.00010942,2]
[335689563,1724433033763,-150.0,0.00010952,2]
[335689564,1724433033773,-150.0,0.00010972,2]
[335689565,1724433033782,-150.0,0.00010976,2]
[335689566,1724433033791,-150.0,0.00010979,2]
[335689567,1724433033801,-35741.98754431,0.00010979,2]
[335689568,1724433033810,-150.0,0.00010981,2]
[335689569,1724433033820,-1500.0,0.00010988,2]
[335689570,1724433033833,-187.0,0.0001099,2]
[335689571,1724433033843,-150.83,0.0001099,2]
[335689572,1724433033853,-150.83,0.0001099,2]
[335689573,1724433033863,-500.0,0.00010992,2]
[335689574,1724433033873,-500.0,0.00010992,2]
[335689575,1724433033884,-151.32367669,0.00010993,2]
[335689576,1724433033895,-500.0,0.00010993,2]
[335689577,1724433033906,-500.0,0.00010993,2]
[335689578,1724433033917,-627.64090878,0.00010993,2]
[335689579,1724433033927,-4837.29017679,0.00010993,2]
[335689580,1724433033936,-351.585268,0.00010996,2]
[335689581,1724433033946,-162.945739,0.00010996,2]
[335689582,1724433033956,-311.270309,0.00010996,2]
[335689583,1724433033965,-522.441553,0.00010996,2]
[335689584,1724433033975,-150.0,0.00010997,2]
[335689585,1724433033985,-1000.0,0.00010998,2]
[335689586,1724433033995,-500.0,0.00010998,2]
[335689587,1724433034005,-1442.48,0.00010998,2]
[335689588,1724433034015,-500.0,0.00010998,2]
[335689589,1724433034024,-584.76,0.00010998,2]
[335689590,1724433034034,-1947.2,0.00010998,2]
[335689591,1724433034044,-500.0,0.00010998,2]
[335689592,1724433034054,-500.0,0.00010998,2]
[335689593,1724433034064,-500.0,0.00010998,2]
[335689594,1724433034074,-598.88239859,0.00010998,2]
[335689595,1724433034085,-500.0,0.00010998,2]
[335689596,1724433034094,-500.0,0.00010998,2]
[335689597,1724433034104,-500.0,0.00010998,2]
[335689598,1724433034114,-500.0,0.00010998,2]
[335689599,1724433034124,-500.0,0.00010998,2]
[335689600,1724433034133,-500.0,0.00010998,2]
[335689601,1724433034143,-500.0,0.00010998,2]
[335689602,1724433034153,-500.0,0.00010998,2]
[335689603,1724433034162,-1000.0,0.00010998,2]
[335689604,1724433034173,-500.0,0.00010998,2]
[335689605,1724433034183,-554.06,0.00010998,2]
[335689606,1724433034194,-500.0,0.00010998,2]
[335689607,1724433034204,-618.88,0.00010998,2]
[335689608,1724433034213,-561.31,0.00010998,2]
[335689609,1724433034223,-150.0,0.00010998,2]
[335689610,1724433034233,-500.0,0.00010998,2]
[335689611,1724433034242,-1038.62,0.00010998,2]
[335689612,1724433034252,-1000.0,0.00010999,2]
[335689613,1724433034261,-1000.0,0.00010999,2]
[335689614,1724433034271,-1000.0,0.00010999,2]
[335689615,1724433034281,-1000.0,0.00010999,2]
[335689617,1724433034291,-1442.48,0.00010999,2]
[335689619,1724433034301,-1442.48,0.00010999,2]
[335689620,1724433034311,-1442.48,0.00010999,2]
[335689621,1724433034321,-1442.48,0.00010999,2]
[335689622,1724433034331,-1442.48,0.00010999,2]
[335689623,1724433034341,-1442.48,0.00010999,2]
[335689624,1724433034351,-1442.48,0.00010999,2]
[335689625,1724433034361,-1442.48,0.00010999,2]
[335689626,1724433034371,-1442.48,0.00010999,2]
[335689627,1724433034381,-1442.48,0.00010999,2]
[335689628,1724433034391,-1442.48,0.00010999,2]
[335689629,1724433034402,-1442.48,0.00010999,2]
[335689630,1724433034411,-1442.48,0.00010999,2]
[335689631,1724433034425,-1442.48,0.00010999,2]
[335689632,1724433034438,-1442.48,0.00010999,2]
[335689633,1724433034448,-500.0,0.00010999,2]
[335689634,1724433034461,-500.0,0.00010999,2]
[335689635,1724433034471,-171.4,0.00010999,2]
[335689636,1724433034481,-584.76,0.00010999,2]
[335689637,1724433034490,-584.76,0.00010999,2]
[335689638,1724433034501,-584.76,0.00010999,2]
[335689639,1724433034511,-584.76,0.00010999,2]
[335689640,1724433034522,-584.76,0.00010999,2]
[335689641,1724433034532,-584.76,0.00010999,2]
[335689642,1724433034541,-584.76,0.00010999,2]
[335689643,1724433034551,-584.76,0.00010999,2]
[335689644,1724433034561,-584.76,0.00010999,2]
[335689645,1724433034571,-584.76,0.00010999,2]
[335689646,1724433034581,-584.76,0.00010999,2]
[335689647,1724433034590,-584.76,0.00010999,2]
[335689648,1724433034600,-584.76,0.00010999,2]
[335689649,1724433034610,-584.76,0.00010999,2]
[335689651,1724433034620,-584.76,0.00010999,2]
[335689653,1724433034629,-1947.2,0.00010999,2]
[335689655,1724433034639,-1947.2,0.00010999,2]
[335689657,1724433034649,-1947.2,0.00010999,2]
[335689659,1724433034659,-1947.2,0.00010999,2]
[335689661,1724433034670,-1947.2,0.00010999,2]
[335689663,1724433034680,-1947.2,0.00010999,2]
[335689665,1724433034689,-1947.2,0.00010999,2]
[335689667,1724433034699,-1947.2,0.00010999,2]
[335689669,1724433034709,-1947.2,0.00010999,2]
[335689671,1724433034719,-1947.2,0.00010999,2]
[335689673,1724433034728,-1947.2,0.00010999,2]
[335689675,1724433034737,-1947.2,0.00010999,2]
[335689677,1724433034747,-1947.2,0.00010999,2]
[335689679,1724433034756,-1947.2,0.00010999,2]
[335689681,1724433034766,-1947.2,0.00010999,2]
[335689683,1724433034775,-500.0,0.00010999,2]
[335689685,1724433034787,-500.0,0.00010999,2]
[335689687,1724433034796,-500.0,0.00010999,2]
[335689688,1724433034806,-500.0,0.00010999,2]
[335689689,1724433034815,-500.0,0.00010999,2]
[335689690,1724433034824,-500.0,0.00010999,2]
[335689691,1724433034834,-500.0,0.00010999,2]
[335689692,1724433034845,-500.0,0.00010999,2]
[335689693,1724433034854,-500.0,0.00010999,2]
[335689694,1724433034864,-500.0,0.00010999,2]
[335689695,1724433034873,-500.0,0.00010999,2]
[335689696,1724433034883,-500.0,0.00010999,2]
[335689697,1724433034892,-478.94,0.00010999,2]
[335689698,1724433034902,-500.0,0.00010999,2]